Cogmind - Beta 16 @@@ ROGUE MODE // 2025.12.04 @ 23:45:43 Player: h76 Result: Destroyed by G-34 Mercenary with Small Laser Performance ------------- Evolutions (1) 500 Regions Visited (2) 400 Robots Destroyed (71) 355 Value Destroyed (1344) 1344 Prototype IDs (1) 20 Alien Tech Used (0) 0 Bonus (0) 0 TOTAL SCORE: 2619 Bonus ------- None Cogmind --------- Core Integrity 0/400 Matter 300/300 Energy 414/415 System Corruption 0% Temperature Cool (87) Movement Core (800) Ox15 Location -9/Materials Parts ------- > --- POWER (1) -------- Reinforced Ion Engine > --- PROPULSION (2) --- Light Treads > --- UTILITY (3) ------ Large Storage Unit Medium Battery Field Recycling Unit > --- WEAPON (3) ------- Advanced Beam Cannon Advanced Beam Cannon > --- INVENTORY (15) --- Light Nuclear Core VTOL Module VTOL Module VTOL Module VTOL Module Hacking Suite Improved Light Cannon Improved Light Cannon Rocket Launcher Rocket Launcher Rocket Launcher Rocket Launcher Peak State ------------ > --- POWER ------------ Reinforced Ion Engine > --- PROPULSION ------- Light Treads Light Treads > --- UTILITY ---------- Large Storage Unit Medium Battery Field Recycling Unit > --- WEAPON ----------- Advanced Beam Cannon Advanced Beam Cannon Improved Light Cannon > --- INVENTORY -------- Light Nuclear Core VTOL Module VTOL Module VTOL Module VTOL Module Hacking Suite Advanced Beam Cannon Improved Light Cannon Improved Light Cannon Rocket Launcher Rocket Launcher Rocket Launcher Rocket Launcher Rocket Launcher [Rating: 19] Favorites ----------- Power Light Ion Engine Engine Light Ion Engine Propulsion Aluminum Leg Treads Light Treads Leg Aluminum Leg Flight Unit VTOL Module Utility Large Storage Unit Device Field Recycling Unit Storage Large Storage Unit Weapon Improved Light Cannon Energy Gun EM Pulse Gun Energy Cannon Advanced Beam Cannon Ballistic Gun Assault Rifle Ballistic Cannon Improved Light Cannon Launcher Rocket Launcher Build | -11 -10 -9 ------- Run | Yrd Mat Mat Slots Evolved 2 | . . 2 Power . | . . . Propulsion . | . . . Utility 1 | . . 1 Weapon 1 | . . 1 Parts Attached 35 | 6 15 14 Power 4 | 1 2 1 Engine 4 | 1 2 1 Core . | . . . Reactor . | . . . Propulsion 10 | 2 4 4 Treads 4 | . . 4 Leg 4 | 2 2 . Wheel . | . . . Hover . | . . . Flight 2 | . 2 . Utility 7 | 1 4 2 Device 3 | 1 1 1 Storage 4 | . 3 1 Processor . | . . . Hackware . | . . . Protection . | . . . Artifact . | . . . Weapon 14 | 2 5 7 Energy Gun 1 | 1 . . Energy Cannon 3 | . . 3 Ballistic Gun 1 | 1 . . Ballistic Cannon 5 | . 3 2 Launcher 4 | . 2 2 Special Weapon . | . . . Impact Weapon . | . . . Slashing Weapon . | . . . Piercing Weapon . | . . . Special Melee Weapon . | . . . Unidentified Prototypes . | . . . Parts Lost 10 | . 5 5 Power 2 | . 1 1 Propulsion 2 | . 1 1 Utility 2 | . 1 1 Weapon 4 | . 2 2 Highest Loss Streak 3 | . 3 2 To Critical Strikes . | . . . Average Backups 10 | . 8 12 Power . | . . 1 Propulsion 3 | . 3 4 Utility 1 | . 1 1 Weapon 4 | . 3 6 Tool/Special . | . . . Unused Backups 11 | . 3 8 Power 1 | . . 1 Propulsion 2 | . . 2 Utility 2 | . 1 1 Weapon 6 | . 2 4 Tool/Special . | . . . Average Slot Usage (%) 92 | . 87 97 Engine 12 | . 13 10 Treads 9 | . . 20 Leg 13 | . 24 1 Device 9 | . 9 10 Storage 17 | . 13 22 Energy Gun 1 | . 2 . Energy Cannon 3 | . . 7 Ballistic Gun 4 | . 8 . Ballistic Cannon 13 | . 5 22 Launcher 5 | . 8 3 Peak Build Rating 19 | 8 12 19 Average Rating 12 | 3 9 16 On Entrance 6 | . 8 11 Avg Prop Armor Cover (%) 21 | . . 21 Naked Turns . | . . . Heaviest Build 92 | 8 92 52 Greatest Support 40 | 20 20 40 Greatest Overweight (x) 17 | . 9 17 Average Overweight (x) 1 | . 2 1 Largest Inventory Capacity 25 | 5 25 15 Average Capacity 17 | 5 20 15 Most Carried 15 | 3 15 14 Average Carried 10 | 1 8 12 Final Capacity 15 | 5 15 15 Final Carried 14 | 2 14 12 Class Distribution -------------------- 53% | Mutant 32% | Gunner 7% | Bomber 4% | Scavenger-Mutant Dominant Class ---------------- Mutant | -10/Materials Gunner | -9/Materials Resources | -11 -10 -9 ----------- Run | Yrd Mat Mat Matter Collected 1310 | 275 365 670 Remotely . | . . . Salvage Created 1578 | 79 525 974 Parts 109 | 6 40 63 Haulers Intercepted 6 | . 1 5 Recyclers Shooed 3 | . 2 1 Parts Field Recycled 33 | . . 33 Retrieved Matter 177 | . . 177 Parts Self-Destructed . | . . . Prevented . | . . . Parts Restored . | . . . Kills | -11 -10 -9 ------- Run | Yrd Mat Mat Combat Hostiles Destroyed 39 | 1 14 24 Guns 7 | 1 6 . Cannons 25 | . 1 24 AOE 7 | . 7 . Classes Destroyed 10 | 2 6 2 Worker 10 | . 7 3 Builder 3 | . 2 1 Tunneler 2 | 1 1 . Hauler 6 | . 1 5 Recycler 1 | . . 1 Operator 3 | . 2 1 Watcher 7 | . 3 4 Swarmer 13 | . 3 10 Grunt 22 | 1 11 10 Sentry 4 | . . 4 Best Kill Streak 5 | 2 5 5 Combat Bots Only 4 | 1 4 4 Max Kills in Single Turn 3 | 1 3 2 Gunslinging . | . . . Exploded 2 | . 2 . Melee . | . . . Uniques/NPCs Destroyed . | . . . Combat | -11 -10 -9 -------- Run | Yrd Mat Mat Hostile Shots Fired 214 | 7 55 152 Missed 54 | 1 19 34 Hits 160 | 6 36 118 Projectile 160 | 6 36 118 Damage Taken 2127 | 68 631 1428 Core 558 | 12 140 406 Absorbed by Shields . | . . . Core Remaining (%) 67 | 95 39 . Volleys Fired 133 | 5 47 81 Largest 3 | 2 2 3 Hottest 169 | 60 66 169 Shots Fired 259 | 10 75 174 Gun 62 | 10 52 . Cannon 176 | . 6 170 Launcher 21 | . 17 4 Special . | . . . Kinetic 177 | 5 47 125 Thermal 45 | . . 45 Explosive 21 | . 17 4 Electromagnetic 16 | 5 11 . Robot Hit Streak 9 | 3 6 9 Robot Miss Streak 4 | 2 4 3 Penetration Max . | . . . Secondary Targets . | . . . Shots Hit Robots 137 | 6 46 85 Core Hits 88 | 3 46 39 Critical Kills . | . . . Critical Parts Destroyed . | . . . Critical Strikes 4 | . 1 3 Blast 3 | . . 3 Corrupt 1 | . 1 . Melee Attacks . | . . . Impact . | . . . Slashing . | . . . Piercing . | . . . Sneak Attacks . | . . . Combat Hostiles . | . . . Follow-up Attacks . | . . . Damage Inflicted 4055 | 90 1867 2098 Guns 521 | 90 431 . Cannons 2052 | . 70 1982 Explosions 1480 | . 1364 116 Melee . | . . . Ramming 2 | . 2 . Kinetic 2018 | 38 384 1596 Thermal 411 | . 25 386 Explosive 1455 | . 1339 116 Electromagnetic 169 | 52 117 . Impact . | . . . Slashing . | . . . Piercing . | . . . Highest Corruption . | . . . Average Corruption . | . . . Corruption Purged . | . . . Corruption Blocked . | . . . Overload Shots . | . . . Overflow Damage 94 | . 79 15 Projectiles 15 | . . 15 Explosions 79 | . 79 . Melee . | . . . Knockbacks 7 | . . 7 Impact . | . . . Kinetic 7 | . . 7 Secondary . | . . . Self-Inflicted Damage 214 | . 214 . Shots 6 | . 6 . Rammed 1 | . . 1 Targets Rammed 3 | . 2 1 Kicked 2 | . 2 . Crushed . | . . . Highest Temperature 894 | 36 24 894 Average Temperature 177 | 20 9 208 Received Heat Transfer 615 | 36 195 384 Effects 28 | . . 28 Shutdowns 7 | . . 7 Energy Bleed 3 | . . 3 Interference 3 | . . 3 Matter Decay 1 | . . 1 Short Circuit 4 | . . 4 Damage (minor) 5 | . . 5 Damage (major) 2 | . . 2 Damage (core) 3 | . . 3 Siege Activations . | . . . Martial Activations . | . . . Shielding Activations . | . . . Robots Disrupted . | . . . Combat Hostiles . | . . . Robots Corrupted . | . . . Combat Hostiles . | . . . Parts Fried 1 | . 1 . Impact Corruptions . | . . . Robots Melted . | . . . Combat Hostiles . | . . . Parts Melted . | . . . Heat Transferred 753 | . 50 703 Parts Sabotaged . | . . . Parts Stolen . | . . . Parts Stripped . | . . . Power Chain Reactions 1 | . 1 . Alert | -11 -10 -9 ------- Run | Yrd Mat Mat Maximum Alert Level 1 | . . 1 Low Security (%) 96 | 100 100 91 Level 1 3 | . . 8 Level 2 . | . . . Level 3 . | . . . Level 4 . | . . . Level 5 . | . . . High Security . | . . . Max Security . | . . . Peak Influence 295 | 25 187 295 Initial 53 | . 16 53 Average 100 | 3 78 130 Influence Increases 1449 | 25 592 832 Destroy 0b10 Robot/C 780 | 20 280 480 Destroy 0b10 Robot/NC 160 | 5 80 75 Destroy Leader 206 | . 78 128 Successful Hack 57 | . 30 27 Disable Machine 45 | . 30 15 Destroy Structure 126 | . 79 47 Lose Combat Pursuer 75 | . 15 60 Influence Decreases 1173 | . 489 684 Entered New Map 84 | . 9 75 Time Decay 989 | . 430 559 Lost Part 100 | . 50 50 Squads Dispatched 7 | . 3 4 Investigation 4 | . 2 2 Extermination . | . . . Reinforcement 3 | . 1 2 Assault . | . . . Garrison . | . . . Intercept . | . . . Searches Triggered . | . . . Construction Impeded . | . . . Haulers Reinforced . | . . . Active Scanning Responses . | . . . Cargo Convoy Interrupts . | . . . Stealth | -11 -10 -9 --------- Run | Yrd Mat Mat Distress Signals 3 | . . 3 Communications Jammed . | . . . Distress Signals . | . . . Times Spotted 54 | 1 21 32 Peak Tracking Total 6 | 1 4 6 Tactical Retreats 5 | . 1 4 Traps | -11 -10 -9 ------- Run | Yrd Mat Mat Traps Triggered 2 | . 1 1 Indirectly . | . . . Trap Hack Attempts . | . . . Triggered . | . . . Disarmed . | . . . Reprogrammed . | . . . Reused . | . . . Traps Extracted . | . . . Installed . | . . . Triggered . | . . . Machines | -11 -10 -9 ---------- Run | Yrd Mat Mat Machines Disabled 4 | . 2 2 Max in Single Turn 2 | . 2 1 Machines Repaired . | . . . Machines Dismantled . | . . . Machines Sabotaged . | . . . Overloaded Fab Kills . | . . . Hacking | -11 -10 -9 --------- Run | Yrd Mat Mat Machines Accessed 8 | . 4 4 Terminals 7 | . 4 3 Fabricators . | . . . Repair Stations . | . . . Recycling Units . | . . . Scanalyzers 1 | . . 1 Garrison Access . | . . . Total Hacks 39 | . 19 20 Successful 25 | . 10 15 Failed 14 | . 9 5 Catastrophic 1 | . 1 . Database Lockouts . | . . . Manual . | . . . Terminals 38 | . 19 19 Fabricators . | . . . Repair Stations . | . . . Recycling Units . | . . . Scanalyzers 1 | . . 1 Garrison Access . | . . . Terminal Hacks 24 | . 10 14 Record 7 | . 2 5 Branch Access Points 1 | . . 1 Alert Level 2 | . 1 1 Dispatch Records 3 | . 1 2 Security Status 1 | . 1 . Transport Status 1 | . . 1 Investigation Status 1 | . 1 . Reinforcement Status 1 | . 1 . Hauler Manifests 3 | . 1 2 Registered Components 2 | . 1 1 Zone Layout 2 | . 1 1 Fabricator Hacks . | . . . Repair Station Hacks . | . . . Recycling Unit Hacks . | . . . Scanalyzer 1 | . . 1 Insert Component 1 | . . 1 Garrison Access Hacks . | . . . Unauthorized Hacks . | . . . Terminals . | . . . Fabricators . | . . . Repair Stations . | . . . Recycling Units . | . . . Scanalyzers . | . . . Garrison Access . | . . . Data Cores Recovered 1 | . 1 . Used . | . . . Hacking Detections 8 | . 4 4 Full Trace Events 6 | . 3 3 Feedback Events . | . . . Feedback Blocked . | . . . Robot Schematics Acquired . | . . . Robots Built . | . . . Authchips . | . . . Time . | . . . Total Robot Build Rating . | . . . Part Schematics Acquired . | . . . Parts Built . | . . . Authchips . | . . . Time . | . . . Total Part Build Rating . | . . . Part Studies Acquired . | . . . Parts Repaired . | . . . Time . | . . . Parts Recycled . | . . . Recycled Matter . | . . . Retrieved Matter . | . . . Retrieved Components . | . . . Parts Scanalyzed . | . . . Part Schematics Acquired . | . . . Parts Damaged . | . . . Bothacking | -11 -10 -9 ------------ Run | Yrd Mat Mat Used RIF Installer . | . . . Robots Hacked . | . . . Non-combat . | . . . Combat . | . . . Robot Hacks Applied . | . . . Relay Couplers Released . | . . . Fabnet Peak Effective % . | . . . Robots Rewired . | . . . Allies Hacked . | . . . Hacks Repelled . | . . . Allies | -11 -10 -9 -------- Run | Yrd Mat Mat Total Allies . | . . . Largest Group . | . . . Highest-Rated Group . | . . . Highest-Rated Ally . | . . . Total Orders . | . . . Ally Attacks . | . . . Total Damage . | . . . Kills . | . . . Allies Corrupted . | . . . Allies Melted . | . . . Intel | -11 -10 -9 ------- Run | Yrd Mat Mat Active Infowar (turns) 1309 | 5 1203 101 Terrain 1309 | 5 1203 101 Robot Analysis Total . | . . . Derelict Logs Recovered . | . . . Drone Launches . | . . . Drone Recoveries . | . . . Exploration | -11 -10 -9 ------------- Run | Yrd Mat Mat Turns Passed 3549 | 97 1809 1643 Spaces Moved 1198 | 71 569 558 Core 34 | 23 . 11 Treads 516 | . . 516 Legs 648 | 48 569 31 Wheels . | . . . Hover . | . . . Flight . | . . . Fastest Speed 50 | 50 120 160 Average Speed 254 | 97 284 244 Slowest Speed 900 | 120 750 900 Overloaded Moves . | . . . Propulsion Burnouts . | . . . Robots Hopped . | . . . Potential Cave-ins . | . . . Cave-ins Triggered . | . . . Exploration Rate (%) 36 | 6 69 34 Regions Visited 2 Branch Regions . Pre-discovered Areas . | . . . Known Exits Taken . | . . . Unknown Exits Taken 2 | 1 1 . Scrap Searched . | . . . Spaces Dug . | . . . Terrain Destroyed 157 | . 114 43 Melee . | . . . Projectile 8 | . 1 7 AOE 149 | . 113 36 Terrain Rammed . | . . . Walls Destroyed . | . . . Machines Disabled . | . . . Actions | -11 -10 -9 --------- Run | Yrd Mat Mat Total 1448 | 89 674 685 Wait 14 | . 1 13 Move 1196 | 70 568 558 Hop . | . . . Pick Up 45 | 8 27 10 Fast Attach . | . . . Attach 21 | 6 9 6 Detach . | . . . Swap 19 | . 10 9 Drop 17 | . 10 7 Fire 133 | 5 47 81 Melee . | . . . Ram . | . . . Kick 2 | . 2 . Crush 1 | . . 1 Escape Stasis . | . . . Rewire . | . . . Trap . | . . . Miscellaneous . | . . . Route ------- -11/Scrapyard -10/Materials (discovered 3 exits: *Mat x2 / [*Min]) -9/Materials (discovered 1 exit: *Min) History --------- Turn | Location | Event 2 | -11/Scrapyard | Met Revision 17 66 | -11/Scrapyard | Discovered new exit (range 8) 98 | -11/Scrapyard | Entered Materials 155 | -10/Materials | Discovered new exit (range 16) 318 | -10/Materials | Build established: Mutant 967 | -10/Materials | Core integrity fell below 50% 999 | -10/Materials | Lost 3 parts (1p1u1w) 1518 | -10/Materials | Discovered new exit (range 16) 1733 | -10/Materials | Discovered new exit (range 15) 1907 | -10/Materials | Entered another Materials area 1907 | -9/Materials | Evolved 2 slots: Utility x1, Weapon x1 2297 | -9/Materials | Discovered new exit (range 15) 2481 | -9/Materials | Identified exit to Mines 2592 | -9/Materials | Build established: Gunner 3431 | -9/Materials | Core integrity fell below 50% 3438 | -9/Materials | Core integrity fell below 20% 3550 | -9/Materials | Destroyed by G-34 Mercenary with Small Laser Last Messages --------------- Acquired 10 matter. Power failure, Rnf. Ion Engine shutdown. Overheating: Med. Battery damaged (-17). Overheating: Broken Lgt. Treads damaged (-21). G-34 Mercenary destroyed. Power failure, Rnf. Ion Engine shutdown. R-06 Scavenger collects Lgt. Assault Rifle. Overheating: Energy bleed (-43). Acquired 2 matter. Adv. Beam Cannon destroyed. G-34 Mercenary destroyed. K-01 Serf collects debris. Acquired 22 matter. U-05 Engineer builds a Wall. U-05 Engineer lays Concrete. U-05 Engineer builds a Wall. U-05 Engineer lays Concrete. U-05 Engineer builds a Wall. K-01 Serf collects debris. Broken Lgt. Treads destroyed. Map ----- +----------------------------------------------------+ | ???????????????????????????????????????????? | | ???????????????????????????????????????????? | | ???????????????????????????????????????????? | | ???????????????????????????????????????????? | | ???????????????????????????????????????????? | | ???????????????????????????????????????????? | | ???????????????????????????????????????????? | | ???????????????????????????????????????????? | | ???????????????????????????????????????????? | | ???????????????????????????????????????????? | | ???????????????????????????????????????????? | | ???????????????????????????????????????????? | | ???????????????????????????????????????????? | | ???????????????????????????????????????????? | | ???????????????????????????????????????????? | | #??????????????????????????????????????????? | | #??????????????????????????????????????????? | | #??????????????????????????????????????????? | | #????????????#####????#######??????????????? | | #??????????? ???]]!!//#??????????????? | | #?????????# """ """ #??]!!//#??????????????? | | #?????????# """ """ #?? ???????????????? | | #?????????# """ """ #??# ##??????????????? | | #?????????# """ """ #### ###?????????????? | | #?????????# """ """ + ###### #????? | | #?????????# #??# @ #????? | | ??????????#= #??# ###### T #????? | | ####+##########+########g ##??????????????? | | % ! #???????????????? | | #???????????????? | | % =%= #???????????????? | | ##+#########+#####%#######???????????????? | | # * # #!#?????????????????????? | | # # T #*#?????????????????????? | | #""" # #%#?????????????????????? | | #""" # # #?????????????????????? | | ###""" # # #?????????????????????? | | ??# # """ # #?????????????????????? | | ??######## """ # #?????????????????????? | | ?????????# """ # #?????????????????????? | | ?????????###########+#?????????????????????? | | ???????????????????? ??????????????????????? | | ???????????????????? ??????????????????????? | | ???????????????????? ??????????????????????? | | ???????????????????? ??????????????????????? | | ???????????????????? ??????????????????????? | | ??[????????????????? ??????????????????????? | | ???????????????????? ??????????????????????? | | ???????????????????????????????????????????? | | ???????????????????????????????????????????? | +----------------------------------------------------+ Best States ------------- Heat Dissipation 28 Energy Generation 12 Energy Capacity 415 Matter Stores 300 Matter Capacity 300 Sight Range 16 Terrain Scan Range 16 Terrain Scan Density 10 Evasion (%) 55 Recoil Reduction 2 Item Schematics ----------------- None Robot Schematics ------------------ None Fabricated ------------ Nothing Repaired ---------- Nothing Studied --------- None Alien Tech Used ----------------- None Achievements -------------- Bumper Bots Let's See Who's Tougher Safety First Well Done Challenges ------------ None Game ------ Seed PoweredScatterLattice Manual? 0 Play Time 00:43:42 Cumulative 1.2 hours Start 2025.12.04 @ 23:01:21 End 2025.12.04 @ 23:45:43 Sessions 1 Manual Loads 0 Difficulty Rogue Special Mode None Game No. 3 Rogue 3 Adventurer 0 Explorer 0 Win Type - Total 0 Types 0/0/0/0/0/0/0/0/0/0 Lore% 1 Gallery% 4 Achievement% 5 Wizard Run 0 Options --------- Layout 1 ASCII 0 Keyboard 0 Movement Mouse Keybinds 0 Fullscreen 1 Font 16/SmallcapsGlow Map View 25x17 Zoom Use 100% Tactical HUD 0 Map Filters NONE Filters NONE Steam 1 RUN: aaeeeae2-1ddb-4a0b-8877-f0874bf5e342